[Event "Early-Titled-Tuesday-Blitz-July-09-2024"]
[Site "Chess.com"]
[Date "2024.07.09"]
[Round "2"]
[White "jamengrand"]
[Black "amanjazu"]
[Result "0-1"]
[WhiteElo "2265"]
[BlackElo "2599"]
[TimeControl "180+1"]
[EndTime "8:16:11 PDT"]
[Termination "amanjazu won by checkmate"]

1. e4 {[%clk 0:03:00.9]} 1... e6 {[%clk 0:02:59.7]} 2. d4 {[%clk 0:03:00.2]}
2... d5 {[%clk 0:03:00.6]} 3. e5 {[%clk 0:02:59.2]} 3... c5 {[%clk 0:02:59.7]}
4. c3 {[%clk 0:02:59.6]} 4... Nc6 {[%clk 0:03:00.4]} 5. Nf3 {[%clk 0:02:59.8]}
5... Nge7 {[%clk 0:03:01.1]} 6. a3 {[%clk 0:02:57.2]} 6... a5 {[%clk 0:03:00.5]}
7. a4 {[%clk 0:02:47.6]} 7... c4 {[%clk 0:02:51.9]} 8. Na3 {[%clk 0:02:45.7]}
8... Ng6 {[%clk 0:02:51.2]} 9. Nb5 {[%clk 0:02:45.3]} 9... Na7 {[%clk
0:02:51.5]} 10. Nxa7 {[%clk 0:02:44.8]} 10... Rxa7 {[%clk 0:02:52.4]} 11. h4
{[%clk 0:02:44.8]} 11... Be7 {[%clk 0:02:44.5]} 12. h5 {[%clk 0:02:43.3]} 12...
Nf8 {[%clk 0:02:45.2]} 13. b3 {[%clk 0:02:42.2]} 13... cxb3 {[%clk 0:02:40.4]}
14. Qxb3 {[%clk 0:02:36.8]} 14... h6 {[%clk 0:02:40.9]} 15. c4 {[%clk
0:02:18.2]} 15... dxc4 {[%clk 0:02:38.4]} 16. Bxc4 {[%clk 0:02:18.8]} 16... Bd7
{[%clk 0:02:38.7]} 17. d5 {[%clk 0:02:16.9]} 17... exd5 {[%clk 0:02:28.3]} 18.
Bxd5 {[%clk 0:02:10.8]} 18... Bb4+ {[%clk 0:02:09.4]} 19. Ke2 {[%clk 0:02:07.3]}
19... Ne6 {[%clk 0:02:08.3]} 20. Be3 {[%clk 0:01:58.7]} 20... b6 {[%clk
0:02:01.8]} 21. Nd4 {[%clk 0:01:37.3]} 21... Nxd4+ {[%clk 0:01:54.9]} 22. Bxd4
{[%clk 0:01:36.5]} 22... O-O {[%clk 0:01:55.8]} 23. f4 {[%clk 0:01:25.1]} 23...
Bg4+ {[%clk 0:01:53.7]} 24. Kf2 {[%clk 0:01:23.4]} 24... Rd7 {[%clk 0:01:53.4]}
25. Kg3 {[%clk 0:00:58.5]} 25... Rxd5 {[%clk 0:01:51]} 26. Kxg4 {[%clk
0:00:57.5]} 26... Rxd4 {[%clk 0:01:51.1]} 27. Rad1 {[%clk 0:00:57.7]} 27... Bd2
{[%clk 0:01:49.7]} 28. g3 {[%clk 0:00:51.4]} 28... Qd7+ {[%clk 0:01:44]} 29. Kf3
{[%clk 0:00:48.8]} 29... Qc6+ {[%clk 0:01:42.8]} 30. Kg4 {[%clk 0:00:48.5]}
30... Rc8 {[%clk 0:01:39]} 31. Rh2 {[%clk 0:00:39.2]} 31... Qd7+ {[%clk
0:01:36.5]} 32. Kh4 {[%clk 0:00:38.8]} 32... Rc3 {[%clk 0:01:26.4]} 33. Qxb6
{[%clk 0:00:16.7]} 33... Bxf4 {[%clk 0:01:06.7]} 34. Qxd4 {[%clk 0:00:15.4]}
34... Bxg3# {[%clk 0:01:06.7]} 0-1

[Event "Early-Titled-Tuesday-Blitz-July-09-2024"]
[Site "Chess.com"]
[Date "2024.07.09"]
[Round "2"]
[White "FoxOnTheRun97"]
[Black "vladislavkovalev"]
[Result "1-0"]
[WhiteElo "2628"]
[BlackElo "2892"]
[TimeControl "180+1"]
[EndTime "8:16:14 PDT"]
[Termination "FoxOnTheRun97 won by resignation"]

1. d4 {[%clk 0:03:00.9]} 1... Nf6 {[%clk 0:03:00.2]} 2. Bg5 {[%clk 0:03:00.6]}
2... Ne4 {[%clk 0:02:57.8]} 3. h4 {[%clk 0:03:00.3]} 3... c5 {[%clk 0:02:56.9]}
4. d5 {[%clk 0:03:00.2]} 4... Qb6 {[%clk 0:02:50.2]} 5. Nd2 {[%clk 0:02:59]}
5... Nxg5 {[%clk 0:02:47.9]} 6. hxg5 {[%clk 0:02:59.9]} 6... Qxb2 {[%clk
0:02:48.5]} 7. g6 {[%clk 0:02:58.3]} 7... fxg6 {[%clk 0:02:48.4]} 8. e3 {[%clk
0:02:58.5]} 8... d6 {[%clk 0:02:36.7]} 9. Bd3 {[%clk 0:02:57]} 9... Bf5 {[%clk
0:02:33.2]} 10. e4 {[%clk 0:02:53.6]} 10... Bg4 {[%clk 0:02:29.2]} 11. Rb1
{[%clk 0:02:40.9]} 11... Bxd1 {[%clk 0:02:27.3]} 12. Rxb2 {[%clk 0:02:41.3]}
12... Bg4 {[%clk 0:02:27.4]} 13. Rxb7 {[%clk 0:02:41.2]} 13... Bc8 {[%clk
0:02:14.3]} 14. Rb3 {[%clk 0:02:32.5]} 14... Nd7 {[%clk 0:02:10.5]} 15. Ngf3
{[%clk 0:02:27.5]} 15... Nb6 {[%clk 0:01:49]} 16. e5 {[%clk 0:02:21.2]} 16...
Bf5 {[%clk 0:01:46.2]} 17. Bb5+ {[%clk 0:02:06.9]} 17... Bd7 {[%clk 0:01:45.9]}
18. Bxd7+ {[%clk 0:02:00.8]} 18... Kxd7 {[%clk 0:01:45.4]} 19. e6+ {[%clk
0:02:00.2]} 19... Kc7 {[%clk 0:01:45.3]} 20. c4 {[%clk 0:01:56.1]} 20... g5
{[%clk 0:01:32.6]} 21. Nxg5 {[%clk 0:01:53.7]} 21... g6 {[%clk 0:01:33]} 22. Nf7
{[%clk 0:01:52.3]} 22... Rg8 {[%clk 0:01:32.6]} 23. Rxh7 {[%clk 0:01:52.3]}
23... Bg7 {[%clk 0:01:32.9]} 24. Ng5 {[%clk 0:01:45.2]} 24... a5 {[%clk
0:01:31.3]} 25. Rf3 {[%clk 0:01:38.1]} 25... Raf8 {[%clk 0:01:08.3]} 26. Rf7
{[%clk 0:01:34.6]} 26... Bf6 {[%clk 0:01:08.5]} 27. Nge4 {[%clk 0:00:59.5]}
27... Rxf7 {[%clk 0:01:03.6]} 28. Rxf7 {[%clk 0:00:54.3]} 28... Bd4 {[%clk
0:00:53.3]} 29. Rxe7+ {[%clk 0:00:53.3]} 29... Kd8 {[%clk 0:00:50.2]} 30. Rb7
{[%clk 0:00:50.2]} 30... Nc8 {[%clk 0:00:50.8]} 31. Rd7+ {[%clk 0:00:48.6]}
31... Ke8 {[%clk 0:00:51.2]} 32. Nxd6+ {[%clk 0:00:45.6]} 32... Nxd6 {[%clk
0:00:52.1]} 33. Rxd6 {[%clk 0:00:46.4]} 33... Rf8 {[%clk 0:00:51.3]} 34. Ne4
{[%clk 0:00:45.9]} 34... Rf4 {[%clk 0:00:50.6]} 35. f3 {[%clk 0:00:46]} 35... g5
{[%clk 0:00:49.7]} 36. Ra6 {[%clk 0:00:40.7]} 36... g4 {[%clk 0:00:48.4]} 37. d6
{[%clk 0:00:40.1]} 1-0

[Event "Early-Titled-Tuesday-Blitz-July-09-2024"]
[Site "Chess.com"]
[Date "2024.07.09"]
[Round "2"]
[White "OparinGrigoriy"]
[Black "banjadvorovi"]
[Result "1-0"]
[WhiteElo "3003"]
[BlackElo "2421"]
[TimeControl "180+1"]
[EndTime "8:16:14 PDT"]
[Termination "OparinGrigoriy won by checkmate"]

1. Nf3 {[%clk 0:03:00.9]} 1... Nf6 {[%clk 0:02:58.4]} 2. g3 {[%clk 0:03:01.8]}
2... g6 {[%clk 0:02:56.7]} 3. Bg2 {[%clk 0:03:02.7]} 3... Bg7 {[%clk 0:02:56.9]}
4. c4 {[%clk 0:03:03.6]} 4... O-O {[%clk 0:02:57.3]} 5. Nc3 {[%clk 0:03:04.3]}
5... d5 {[%clk 0:02:57.3]} 6. cxd5 {[%clk 0:03:05.2]} 6... Nxd5 {[%clk 0:02:58]}
7. d4 {[%clk 0:03:05.1]} 7... Nb6 {[%clk 0:02:56.5]} 8. O-O {[%clk 0:03:05]}
8... e6 {[%clk 0:02:55.6]} 9. e4 {[%clk 0:03:04.4]} 9... Nc6 {[%clk 0:02:56.1]}
10. Be3 {[%clk 0:03:04.2]} 10... Nc4 {[%clk 0:02:56.1]} 11. Qe2 {[%clk
0:03:03.4]} 11... Nxe3 {[%clk 0:02:56.1]} 12. fxe3 {[%clk 0:03:04.3]} 12... b6
{[%clk 0:02:52.1]} 13. e5 {[%clk 0:03:03.1]} 13... Bb7 {[%clk 0:02:52.2]} 14.
Rad1 {[%clk 0:03:02]} 14... Ne7 {[%clk 0:02:49.1]} 15. e4 {[%clk 0:02:58]} 15...
Qe8 {[%clk 0:02:29]} 16. h4 {[%clk 0:02:53.6]} 16... Rd8 {[%clk 0:02:27.3]} 17.
h5 {[%clk 0:02:52.3]} 17... c5 {[%clk 0:02:19.4]} 18. dxc5 {[%clk 0:02:12.8]}
18... bxc5 {[%clk 0:02:20.3]} 19. Qe3 {[%clk 0:02:11.3]} 19... Qc6 {[%clk
0:02:09.6]} 20. h6 {[%clk 0:02:08.9]} 20... Bh8 {[%clk 0:02:09.7]} 21. Qg5
{[%clk 0:02:08.8]} 21... f6 {[%clk 0:01:48.3]} 22. exf6 {[%clk 0:02:07.9]} 22...
Bxf6 {[%clk 0:01:45.3]} 23. Qg4 {[%clk 0:02:08.1]} 23... Rxd1 {[%clk 0:01:38.4]}
24. Rxd1 {[%clk 0:02:04.9]} 24... Bxc3 {[%clk 0:01:36.1]} 25. bxc3 {[%clk
0:02:05.8]} 25... Qxe4 {[%clk 0:01:32.2]} 26. Qxe4 {[%clk 0:02:06.7]} 26... Bxe4
{[%clk 0:01:31.7]} 27. Ng5 {[%clk 0:02:06.5]} 27... Bxg2 {[%clk 0:01:27.6]} 28.
Kxg2 {[%clk 0:02:07.4]} 28... Nf5 {[%clk 0:01:27.7]} 29. Rd7 {[%clk 0:02:06.6]}
29... Nxh6 {[%clk 0:01:25.2]} 30. Rxa7 {[%clk 0:02:05.9]} 30... Ng4 {[%clk
0:00:58.5]} 31. a4 {[%clk 0:01:58.9]} 31... Rf2+ {[%clk 0:00:49.3]} 32. Kg1
{[%clk 0:01:57.7]} 32... Rc2 {[%clk 0:00:32.4]} 33. a5 {[%clk 0:01:57.3]} 33...
Rxc3 {[%clk 0:00:32.6]} 34. Nxe6 {[%clk 0:01:54.7]} 34... Rxg3+ {[%clk 0:00:32]}
35. Kf1 {[%clk 0:01:53.4]} 35... Ra3 {[%clk 0:00:31.4]} 36. a6 {[%clk
0:01:53.3]} 36... Ne5 {[%clk 0:00:25.4]} 37. Rg7+ {[%clk 0:01:53.3]} 37... Kh8
{[%clk 0:00:25.2]} 38. Re7 {[%clk 0:01:51]} 38... h5 {[%clk 0:00:16.9]} 39. a7
{[%clk 0:01:51.1]} 39... h4 {[%clk 0:00:05.5]} 40. Re8+ {[%clk 0:01:38.6]} 40...
Kh7 {[%clk 0:00:05.6]} 41. a8=Q {[%clk 0:01:39.5]} 41... Rxa8 {[%clk 0:00:05.9]}
42. Rxa8 {[%clk 0:01:40.4]} 42... Kh6 {[%clk 0:00:02.7]} 43. Rh8# {[%clk
0:01:40]} 1-0

[Event "Early-Titled-Tuesday-Blitz-July-09-2024"]
[Site "Chess.com"]
[Date "2024.07.09"]
[Round "2"]
[White "boguszp"]
[Black "Kopytkin"]
[Result "0-1"]
[WhiteElo "1953"]
[BlackElo "2425"]
[TimeControl "180+1"]
[EndTime "8:16:14 PDT"]
[Termination "Kopytkin won on time"]

1. d4 {[%clk 0:03:00.9]} 1... c5 {[%clk 0:02:58.3]} 2. e3 {[%clk 0:02:58.3]}
2... d5 {[%clk 0:02:56.7]} 3. Nf3 {[%clk 0:02:57.2]} 3... Nf6 {[%clk 0:02:55.8]}
4. Be2 {[%clk 0:02:56.4]} 4... Nc6 {[%clk 0:02:55.5]} 5. O-O {[%clk 0:02:56.7]}
5... g6 {[%clk 0:02:48.9]} 6. c4 {[%clk 0:02:56.7]} 6... cxd4 {[%clk 0:02:48.1]}
7. cxd5 {[%clk 0:02:53.6]} 7... Qxd5 {[%clk 0:02:47.5]} 8. exd4 {[%clk
0:02:49.3]} 8... Bg7 {[%clk 0:02:46.7]} 9. Nc3 {[%clk 0:02:48.6]} 9... Qd8
{[%clk 0:02:41.7]} 10. Bf4 {[%clk 0:02:47.9]} 10... Nd5 {[%clk 0:02:39.2]} 11.
Nxd5 {[%clk 0:02:22.8]} 11... Qxd5 {[%clk 0:02:40.1]} 12. Be3 {[%clk 0:02:21.3]}
12... O-O {[%clk 0:02:38.6]} 13. Rc1 {[%clk 0:02:21.8]} 13... Qxa2 {[%clk
0:02:22.7]} 14. Qd2 {[%clk 0:02:15.8]} 14... Be6 {[%clk 0:02:11]} 15. Rfd1
{[%clk 0:02:04]} 15... Rfd8 {[%clk 0:02:09.5]} 16. Ra1 {[%clk 0:01:46]} 16...
Qd5 {[%clk 0:02:08.6]} 17. Ng5 {[%clk 0:01:26.3]} 17... Nxd4 {[%clk 0:01:55.3]}
18. Nxe6 {[%clk 0:01:22.5]} 18... Qxe6 {[%clk 0:01:47.4]} 19. Bxd4 {[%clk
0:01:17.1]} 19... Bxd4 {[%clk 0:01:46.3]} 20. Qe1 {[%clk 0:00:49.1]} 20... Qb6
{[%clk 0:01:45.2]} 21. Rac1 {[%clk 0:00:32.3]} 21... e5 {[%clk 0:01:43.7]} 22.
Rc2 {[%clk 0:00:18.2]} 22... Rac8 {[%clk 0:01:38.4]} 23. Rcd2 {[%clk 0:00:17.4]}
23... a5 {[%clk 0:01:36]} 24. Kf1 {[%clk 0:00:14.6]} 24... a4 {[%clk 0:01:32.5]}
25. Bf3 {[%clk 0:00:12.7]} 25... Qb5+ {[%clk 0:01:18.8]} 26. Kg1 {[%clk
0:00:08.9]} 26... Qa5 {[%clk 0:01:15.1]} 27. Qe4 {[%clk 0:00:08]} 27... b5
{[%clk 0:01:00.3]} 0-1

[Event "Early-Titled-Tuesday-Blitz-July-09-2024"]
[Site "Chess.com"]
[Date "2024.07.09"]
[Round "2"]
[White "Andrey-Ivanov2011"]
[Black "Juicy_Fork"]
[Result "0-1"]
[WhiteElo "2165"]
[BlackElo "2457"]
[TimeControl "180+1"]
[EndTime "8:16:16 PDT"]
[Termination "Juicy_Fork won by checkmate"]

1. e4 {[%clk 0:03:00.9]} 1... e5 {[%clk 0:02:56.3]} 2. Nf3 {[%clk 0:03:00.4]}
2... Nc6 {[%clk 0:02:56.2]} 3. Bc4 {[%clk 0:02:59.2]} 3... Nf6 {[%clk
0:02:56.2]} 4. Ng5 {[%clk 0:02:56.9]} 4... d5 {[%clk 0:02:56.2]} 5. exd5 {[%clk
0:02:54.9]} 5... Na5 {[%clk 0:02:56.4]} 6. Bb5+ {[%clk 0:02:49.1]} 6... c6
{[%clk 0:02:56.6]} 7. dxc6 {[%clk 0:02:49.6]} 7... bxc6 {[%clk 0:02:57.5]} 8.
Be2 {[%clk 0:02:46.3]} 8... h6 {[%clk 0:02:55.1]} 9. Nh3 {[%clk 0:02:46.2]} 9...
Bc5 {[%clk 0:02:48.2]} 10. O-O {[%clk 0:02:41.8]} 10... O-O {[%clk 0:02:47.2]}
11. Nc3 {[%clk 0:02:39.7]} 11... Bxh3 {[%clk 0:02:45]} 12. gxh3 {[%clk
0:02:40.6]} 12... Qd7 {[%clk 0:02:42.4]} 13. Bg4 {[%clk 0:02:39.7]} 13... Nxg4
{[%clk 0:02:37.8]} 14. hxg4 {[%clk 0:02:35.8]} 14... f5 {[%clk 0:02:38]} 15. h3
{[%clk 0:02:33.8]} 15... fxg4 {[%clk 0:02:36.8]} 16. Qxg4 {[%clk 0:02:34.7]}
16... Qxg4+ {[%clk 0:02:29.5]} 17. hxg4 {[%clk 0:02:35.6]} 17... Rf4 {[%clk
0:02:30.1]} 18. d3 {[%clk 0:02:20.4]} 18... Rxg4+ {[%clk 0:02:29.9]} 19. Kh2
{[%clk 0:02:21]} 19... Rf8 {[%clk 0:02:27.8]} 20. Ne4 {[%clk 0:02:20]} 20... Rf5
{[%clk 0:02:20]} 21. Kh3 {[%clk 0:02:12.5]} 21... Rg6 {[%clk 0:02:19.2]} 22. Bg5
{[%clk 0:01:57.3]} 22... Rfxg5 {[%clk 0:01:23.1]} 23. Nxg5 {[%clk 0:01:55.1]}
23... Rxg5 {[%clk 0:01:24]} 24. a3 {[%clk 0:01:50.5]} 24... Nb7 {[%clk
0:01:15.8]} 25. f4 {[%clk 0:01:47.6]} 25... exf4 {[%clk 0:01:12.1]} 26. Rxf4
{[%clk 0:01:48.5]} 26... Re5 {[%clk 0:01:03.2]} 27. c3 {[%clk 0:01:39.8]} 27...
Re3+ {[%clk 0:01:02.6]} 28. Kg4 {[%clk 0:01:33.4]} 28... Rxd3 {[%clk 0:01:00.7]}
29. Re1 {[%clk 0:01:33.7]} 29... Nd6 {[%clk 0:00:51.5]} 30. b4 {[%clk
0:01:28.3]} 30... Bb6 {[%clk 0:00:37.8]} 31. c4 {[%clk 0:01:27.3]} 31... g5
{[%clk 0:00:34.3]} 32. Rf6 {[%clk 0:01:21.1]} 32... Rd4+ {[%clk 0:00:34.1]} 33.
Kh5 {[%clk 0:01:19.1]} 33... Kg7 {[%clk 0:00:20]} 34. Rg6+ {[%clk 0:01:12]}
34... Kf7 {[%clk 0:00:20.4]} 35. Rxh6 {[%clk 0:01:04.8]} 35... Rh4+ {[%clk
0:00:19.6]} 36. Kxg5 {[%clk 0:01:03.7]} 36... Bd8+ {[%clk 0:00:19.9]} 37. Rf6+
{[%clk 0:01:00.1]} 37... Bxf6# {[%clk 0:00:20.1]} 0-1

[Event "Early-Titled-Tuesday-Blitz-July-09-2024"]
[Site "Chess.com"]
[Date "2024.07.09"]
[Round "2"]
[White "BlueWizzard"]
[Black "twofoxniel"]
[Result "1-0"]
[WhiteElo "2953"]
[BlackElo "2640"]
[TimeControl "180+1"]
[EndTime "8:16:21 PDT"]
[Termination "BlueWizzard won by resignation"]

1. d4 {[%clk 0:03:00.9]} 1... d5 {[%clk 0:02:59.8]} 2. Nc3 {[%clk 0:03:01.4]}
2... c6 {[%clk 0:03:00.1]} 3. Nf3 {[%clk 0:03:00.3]} 3... Nf6 {[%clk 0:02:59.9]}
4. Qd3 {[%clk 0:03:00.1]} 4... g6 {[%clk 0:02:54.8]} 5. Bg5 {[%clk 0:02:55.8]}
5... Bg7 {[%clk 0:02:55.1]} 6. Bxf6 {[%clk 0:02:53.7]} 6... Bxf6 {[%clk
0:02:54.5]} 7. e4 {[%clk 0:02:53.9]} 7... dxe4 {[%clk 0:02:52.2]} 8. Nxe4 {[%clk
0:02:53.1]} 8... Bg7 {[%clk 0:02:51.8]} 9. Qe3 {[%clk 0:02:52.8]} 9... O-O
{[%clk 0:02:51.4]} 10. Bc4 {[%clk 0:02:52.9]} 10... Nd7 {[%clk 0:02:51.4]} 11.
h4 {[%clk 0:02:52]} 11... Nf6 {[%clk 0:02:32.2]} 12. O-O-O {[%clk 0:02:51.7]}
12... Bg4 {[%clk 0:02:25.9]} 13. Nxf6+ {[%clk 0:02:44.5]} 13... exf6 {[%clk
0:02:22.7]} 14. h5 {[%clk 0:02:43.9]} 14... Re8 {[%clk 0:02:12.8]} 15. Qf4
{[%clk 0:02:23.2]} 15... Be6 {[%clk 0:02:03.8]} 16. Bxe6 {[%clk 0:02:13.7]}
16... Rxe6 {[%clk 0:02:03.6]} 17. hxg6 {[%clk 0:01:59.6]} 17... hxg6 {[%clk
0:02:03.5]} 18. d5 {[%clk 0:01:57.5]} 18... cxd5 {[%clk 0:02:01.9]} 19. Nd4
{[%clk 0:01:57.2]} 19... Re5 {[%clk 0:01:46.9]} 20. f3 {[%clk 0:01:52.4]} 20...
Qb6 {[%clk 0:01:42.8]} 21. g4 {[%clk 0:01:47.6]} 21... Rc8 {[%clk 0:01:29]} 22.
Rh2 {[%clk 0:01:39.4]} 22... Rc4 {[%clk 0:01:26.3]} 23. c3 {[%clk 0:01:37.5]}
23... Qa5 {[%clk 0:00:57.6]} 24. Kb1 {[%clk 0:01:32.9]} 24... Ra4 {[%clk
0:00:55.8]} 25. a3 {[%clk 0:01:24]} 25... Qb6 {[%clk 0:00:53.3]} 26. Ka2 {[%clk
0:01:18.2]} 26... Rc4 {[%clk 0:00:51.2]} 27. Rdh1 {[%clk 0:01:12.7]} 27... Rc8
{[%clk 0:00:27.2]} 28. Rh7 {[%clk 0:01:06.2]} 28... Rg5 {[%clk 0:00:20.6]} 29.
Qh2 {[%clk 0:00:58.7]} 29... f5 {[%clk 0:00:14.6]} 30. Rh8+ {[%clk 0:00:54.1]}
1-0

[Event "Early-Titled-Tuesday-Blitz-July-09-2024"]
[Site "Chess.com"]
[Date "2024.07.09"]
[Round "2"]
[White "manitodeplomo"]
[Black "maroro07"]
[Result "1-0"]
[WhiteElo "2599"]
[BlackElo "2373"]
[TimeControl "180+1"]
[EndTime "8:16:21 PDT"]
[Termination "manitodeplomo won by checkmate"]

1. e4 {[%clk 0:02:59.9]} 1... c5 {[%clk 0:02:59]} 2. g3 {[%clk 0:02:56.8]} 2...
d6 {[%clk 0:02:54.7]} 3. Bg2 {[%clk 0:02:56.5]} 3... g6 {[%clk 0:02:50.1]} 4.
Ne2 {[%clk 0:02:54.7]} 4... Bg7 {[%clk 0:02:49.9]} 5. c3 {[%clk 0:02:55.3]} 5...
e5 {[%clk 0:02:46.5]} 6. d4 {[%clk 0:02:54.3]} 6... cxd4 {[%clk 0:02:36.8]} 7.
cxd4 {[%clk 0:02:55.2]} 7... Nc6 {[%clk 0:02:35]} 8. Be3 {[%clk 0:02:54.2]} 8...
Nf6 {[%clk 0:02:32.2]} 9. h3 {[%clk 0:02:48.9]} 9... O-O {[%clk 0:02:29.5]} 10.
Nbc3 {[%clk 0:02:48.9]} 10... Re8 {[%clk 0:02:24.4]} 11. O-O {[%clk 0:02:47.9]}
11... exd4 {[%clk 0:01:46]} 12. Nxd4 {[%clk 0:02:48.8]} 12... Nxd4 {[%clk
0:01:46]} 13. Bxd4 {[%clk 0:02:47.2]} 13... Be6 {[%clk 0:01:45.9]} 14. Qd2
{[%clk 0:02:40.8]} 14... Qe7 {[%clk 0:01:42.9]} 15. Rfd1 {[%clk 0:02:28.9]}
15... b6 {[%clk 0:01:41.6]} 16. g4 {[%clk 0:02:20.7]} 16... Rad8 {[%clk
0:01:39.6]} 17. Qf4 {[%clk 0:02:19.1]} 17... h5 {[%clk 0:01:03.5]} 18. f3 {[%clk
0:02:13.9]} 18... Nd7 {[%clk 0:01:01.3]} 19. Bxg7 {[%clk 0:02:11.8]} 19... Kxg7
{[%clk 0:01:02.2]} 20. Rxd6 {[%clk 0:02:02.9]} 20... Nc5 {[%clk 0:01:00.5]} 21.
Rad1 {[%clk 0:02:01]} 21... Rxd6 {[%clk 0:00:59]} 22. Rxd6 {[%clk 0:01:57.9]}
22... Rd8 {[%clk 0:00:59.3]} 23. e5 {[%clk 0:01:36.9]} 23... hxg4 {[%clk
0:00:54.9]} 24. fxg4 {[%clk 0:01:33.1]} 24... Rxd6 {[%clk 0:00:36.1]} 25. exd6
{[%clk 0:01:31.9]} 25... Qh4 {[%clk 0:00:36.3]} 26. b4 {[%clk 0:01:15.5]} 26...
Qe1+ {[%clk 0:00:33.2]} 27. Kh2 {[%clk 0:01:14.8]} 27... Nd3 {[%clk 0:00:32]}
28. Qd4+ {[%clk 0:01:12.4]} 28... Ne5 {[%clk 0:00:30.7]} 29. Ne4 {[%clk
0:01:07.7]} 29... f6 {[%clk 0:00:23.4]} 30. g5 {[%clk 0:01:06.4]} 30... Nd7
{[%clk 0:00:15.7]} 31. Nxf6 {[%clk 0:01:01.6]} 31... Kf7 {[%clk 0:00:15.6]} 32.
Nxd7 {[%clk 0:00:59.5]} 32... Bxd7 {[%clk 0:00:16.5]} 33. Bd5+ {[%clk
0:00:56.6]} 33... Ke8 {[%clk 0:00:16.8]} 34. Qh8# {[%clk 0:00:55]} 1-0

[Event "Early-Titled-Tuesday-Blitz-July-09-2024"]
[Site "Chess.com"]
[Date "2024.07.09"]
[Round "2"]
[White "chess_blitz00"]
[Black "norwaytoadog"]
[Result "0-1"]
[WhiteElo "2520"]
[BlackElo "2349"]
[TimeControl "180+1"]
[EndTime "8:16:21 PDT"]
[Termination "norwaytoadog won by resignation"]

1. Nf3 {[%clk 0:03:00.9]} 1... Nf6 {[%clk 0:02:59.1]} 2. d4 {[%clk 0:03:00.3]}
2... e6 {[%clk 0:02:55.8]} 3. Bh6 {[%clk 0:02:55.9]} 3... gxh6 {[%clk
0:02:50.1]} 4. Nbd2 {[%clk 0:02:54]} 4... d5 {[%clk 0:02:47.2]} 5. e3 {[%clk
0:02:53.7]} 5... c5 {[%clk 0:02:46.2]} 6. c3 {[%clk 0:02:53]} 6... Nc6 {[%clk
0:02:46.8]} 7. Bd3 {[%clk 0:02:52.9]} 7... Bd6 {[%clk 0:02:41.3]} 8. O-O {[%clk
0:02:50.6]} 8... Rg8 {[%clk 0:02:38.3]} 9. e4 {[%clk 0:02:47.7]} 9... dxe4
{[%clk 0:02:19.6]} 10. Nxe4 {[%clk 0:02:47.5]} 10... Nxe4 {[%clk 0:02:18.5]} 11.
Bxe4 {[%clk 0:02:48.4]} 11... Qc7 {[%clk 0:02:12.8]} 12. Bxh7 {[%clk 0:02:38.2]}
12... Rg7 {[%clk 0:02:12.2]} 13. Be4 {[%clk 0:02:37.4]} 13... Bd7 {[%clk
0:02:10.6]} 14. dxc5 {[%clk 0:01:53.4]} 14... Bxc5 {[%clk 0:02:05.1]} 15. b4
{[%clk 0:01:53.4]} 15... Bd6 {[%clk 0:01:57.1]} 16. Qd2 {[%clk 0:01:43.9]} 16...
O-O-O {[%clk 0:01:44.8]} 17. Qxh6 {[%clk 0:01:27.1]} 17... Rdg8 {[%clk
0:01:41.3]} 18. g3 {[%clk 0:01:16.6]} 18... f5 {[%clk 0:01:24.2]} 19. Bxc6
{[%clk 0:00:36.4]} 19... Qxc6 {[%clk 0:01:23.7]} 20. Nd4 {[%clk 0:00:35.9]}
20... Qc4 {[%clk 0:01:15.7]} 21. Rad1 {[%clk 0:00:22.6]} 21... Bc7 {[%clk
0:01:06.7]} 22. Qd2 {[%clk 0:00:14.7]} 22... f4 {[%clk 0:00:59.9]} 23. Ne2
{[%clk 0:00:09.6]} 23... Bc6 {[%clk 0:00:50]} 24. Qxf4 {[%clk 0:00:07.3]} 24...
Bxf4 {[%clk 0:00:48.8]} 25. Nxf4 {[%clk 0:00:08.2]} 25... Qxf4 {[%clk
0:00:48.2]} 0-1

[Event "Early-Titled-Tuesday-Blitz-July-09-2024"]
[Site "Chess.com"]
[Date "2024.07.09"]
[Round "2"]
[White "ilovejokes555"]
[Black "DawidCzerw"]
[Result "1-0"]
[WhiteElo "2320"]
[BlackElo "2495"]
[TimeControl "180+1"]
[EndTime "8:16:22 PDT"]
[Termination "ilovejokes555 won by checkmate"]

1. e4 {[%clk 0:03:00.9]} 1... c5 {[%clk 0:03:00]} 2. Nf3 {[%clk 0:03:00.3]} 2...
Nc6 {[%clk 0:02:59.5]} 3. d4 {[%clk 0:03:00.6]} 3... cxd4 {[%clk 0:03:00.4]} 4.
Nxd4 {[%clk 0:03:00.5]} 4... g6 {[%clk 0:03:00.6]} 5. c4 {[%clk 0:02:59.7]} 5...
Nf6 {[%clk 0:03:00.4]} 6. Nc3 {[%clk 0:02:59.2]} 6... d6 {[%clk 0:03:00.4]} 7.
Be3 {[%clk 0:02:58.7]} 7... Ng4 {[%clk 0:03:00]} 8. Be2 {[%clk 0:02:53.9]} 8...
Nxe3 {[%clk 0:02:58.2]} 9. fxe3 {[%clk 0:02:53.9]} 9... Bh6 {[%clk 0:02:58.5]}
10. Qd3 {[%clk 0:02:44.8]} 10... Ne5 {[%clk 0:02:51.7]} 11. Qd2 {[%clk
0:02:43.6]} 11... e6 {[%clk 0:02:45.6]} 12. O-O {[%clk 0:02:41.8]} 12... a6
{[%clk 0:02:45.3]} 13. Rae1 {[%clk 0:02:37.8]} 13... Qg5 {[%clk 0:02:44.2]} 14.
Bd1 {[%clk 0:02:34.5]} 14... Nxc4 {[%clk 0:02:36.4]} 15. Qf2 {[%clk 0:02:31.9]}
15... O-O {[%clk 0:02:26.7]} 16. Nf3 {[%clk 0:02:22.6]} 16... Qc5 {[%clk
0:02:15.6]} 17. Na4 {[%clk 0:02:17]} 17... Qa7 {[%clk 0:02:12.8]} 18. Qh4 {[%clk
0:02:04.1]} 18... Bg7 {[%clk 0:02:00.5]} 19. Ng5 {[%clk 0:01:31.1]} 19... h6
{[%clk 0:01:57.4]} 20. Nxf7 {[%clk 0:01:31.1]} 20... Rxf7 {[%clk 0:01:47.5]} 21.
Qd8+ {[%clk 0:01:05.1]} 21... Rf8 {[%clk 0:01:09.4]} 22. Rxf8+ {[%clk
0:01:03.5]} 22... Bxf8 {[%clk 0:01:10.3]} 23. Rf1 {[%clk 0:00:58.1]} 23... b5
{[%clk 0:00:18.1]} 24. Rxf8+ {[%clk 0:00:37.6]} 24... Kg7 {[%clk 0:00:16.4]} 25.
Rg8+ {[%clk 0:00:37.4]} 25... Kh7 {[%clk 0:00:14.9]} 26. Rh8+ {[%clk 0:00:37.3]}
26... Kg7 {[%clk 0:00:15.8]} 27. Qf8# {[%clk 0:00:37]} 1-0